[Event "*** Titled Tuesday Blitz"]
[Site "Chess.com"]
[Date "2020.04.14"]
[Round "8"]
[White "talaicito"]
[Black "beto-betun"]
[Result "0-1"]
[WhiteElo "2279"]
[BlackElo "2120"]
[TimeControl "180+1"]
[EndTime "11:29:40 PDT"]
[Termination "beto-betun won on time"]

1. d4 {[%clk 0:03:00.9]} 1... Nf6 {[%clk 0:02:59.2]} 2. Nc3 {[%clk 0:03:00]}
2... d5 {[%clk 0:02:58.1]} 3. Bf4 {[%clk 0:02:59.2]} 3... g6 {[%clk 0:02:46.2]}
4. e3 {[%clk 0:02:57.9]} 4... Bg7 {[%clk 0:02:46.7]} 5. h4 {[%clk 0:02:55.4]}
5... c5 {[%clk 0:02:37.5]} 6. Nb5 {[%clk 0:02:54.2]} 6... Na6 {[%clk 0:02:34.3]}
7. c3 {[%clk 0:02:54]} 7... O-O {[%clk 0:02:21.3]} 8. a4 {[%clk 0:02:43.6]} 8...
cxd4 {[%clk 0:02:15.2]} 9. exd4 {[%clk 0:02:43.2]} 9... Bf5 {[%clk 0:02:10]} 10.
Bd3 {[%clk 0:02:28.4]} 10... Bxd3 {[%clk 0:02:09.4]} 11. Qxd3 {[%clk 0:02:28]}
11... Nh5 {[%clk 0:02:07]} 12. Bh2 {[%clk 0:02:14.3]} 12... e5 {[%clk 0:01:59]}
13. dxe5 {[%clk 0:02:06.4]} 13... Re8 {[%clk 0:01:59]} 14. O-O-O {[%clk
0:01:42.9]} 14... Bxe5 {[%clk 0:01:46.1]} 15. Bxe5 {[%clk 0:01:31.5]} 15... Rxe5
{[%clk 0:01:47]} 16. Nf3 {[%clk 0:01:31]} 16... Nc5 {[%clk 0:01:34.9]} 17. Qc2
{[%clk 0:01:25.7]} 17... Re4 {[%clk 0:01:24.5]} 18. Rd4 {[%clk 0:01:10.5]} 18...
a6 {[%clk 0:01:18.3]} 19. Na3 {[%clk 0:00:56.1]} 19... Rxd4 {[%clk 0:01:14.5]}
20. cxd4 {[%clk 0:00:49.3]} 20... Ne4 {[%clk 0:01:12]} 21. Kb1 {[%clk
0:00:46.7]} 21... b5 {[%clk 0:01:11.9]} 22. Rc1 {[%clk 0:00:39.6]} 22... Nf4
{[%clk 0:01:03.5]} 23. g3 {[%clk 0:00:36.1]} 23... Ne6 {[%clk 0:01:01]} 24. Qc6
{[%clk 0:00:24.8]} 24... bxa4 {[%clk 0:00:58.5]} 25. Qxa4 {[%clk 0:00:23.9]}
25... Qb6 {[%clk 0:00:50.8]} 26. Qc6 {[%clk 0:00:19.5]} 26... Rb8 {[%clk
0:00:49.3]} 27. Qxb6 {[%clk 0:00:18.7]} 27... Rxb6 {[%clk 0:00:50.2]} 28. Rc8+
{[%clk 0:00:15]} 28... Kg7 {[%clk 0:00:50.6]} 29. Ra8 {[%clk 0:00:15.5]} 29...
Nxf2 {[%clk 0:00:47]} 30. Ra7 {[%clk 0:00:13]} 30... Nd3 {[%clk 0:00:46]} 31.
Kc2 {[%clk 0:00:11.7]} 31... Nxb2 {[%clk 0:00:42]} 32. Ne5 {[%clk 0:00:11.2]}
32... Nxd4+ {[%clk 0:00:33.8]} 33. Kc3 {[%clk 0:00:06.1]} 33... Ne2+ {[%clk
0:00:26.3]} 34. Kd2 {[%clk 0:00:06.1]} 34... Nxg3 {[%clk 0:00:24.5]} 35. Rxf7+
{[%clk 0:00:05.8]} 35... Kh6 {[%clk 0:00:24.4]} 36. Rf3 {[%clk 0:00:02.6]} 36...
Ne4+ {[%clk 0:00:23.5]} 37. Ke1 {[%clk 0:00:01.4]} 37... Na4 {[%clk 0:00:16.1]}
0-1

[Event "*** Titled Tuesday Blitz"]
[Site "Chess.com"]
[Date "2020.04.14"]
[Round "8"]
[White "terrapin33"]
[Black "Rinas_Oleg"]
[Result "0-1"]
[WhiteElo "2117"]
[BlackElo "2262"]
[TimeControl "180+1"]
[EndTime "11:29:40 PDT"]
[Termination "Rinas_Oleg won by resignation"]

1. f4 {[%clk 0:03:00.9]} 1... d5 {[%clk 0:02:50.9]} 2. Nf3 {[%clk 0:03:00.3]}
2... c5 {[%clk 0:02:50.2]} 3. b3 {[%clk 0:02:58.4]} 3... Nc6 {[%clk 0:02:49.4]}
4. Bb2 {[%clk 0:02:58.5]} 4... Nf6 {[%clk 0:02:48]} 5. e3 {[%clk 0:02:58.7]}
5... e6 {[%clk 0:02:46.8]} 6. Bb5 {[%clk 0:02:58.7]} 6... Be7 {[%clk 0:02:45.2]}
7. O-O {[%clk 0:02:57.3]} 7... Bd7 {[%clk 0:02:39.5]} 8. Bxc6 {[%clk 0:02:53.8]}
8... Bxc6 {[%clk 0:02:38.2]} 9. Ne5 {[%clk 0:02:54.7]} 9... Qc7 {[%clk
0:02:37.2]} 10. d3 {[%clk 0:02:54.1]} 10... b5 {[%clk 0:02:18]} 11. a4 {[%clk
0:02:39.4]} 11... b4 {[%clk 0:02:16.7]} 12. Nd2 {[%clk 0:02:37.5]} 12... Bb7
{[%clk 0:01:55.3]} 13. Rf3 {[%clk 0:02:32.6]} 13... a5 {[%clk 0:01:53.8]} 14.
Rg3 {[%clk 0:02:31.5]} 14... Rg8 {[%clk 0:01:46.1]} 15. Qe2 {[%clk 0:02:28.4]}
15... h6 {[%clk 0:01:31.3]} 16. Rd1 {[%clk 0:02:20.2]} 16... g5 {[%clk
0:01:29.2]} 17. fxg5 {[%clk 0:02:10.7]} 17... hxg5 {[%clk 0:01:26.3]} 18. Rf1
{[%clk 0:02:07.6]} 18... Rg7 {[%clk 0:00:55.1]} 19. Rgf3 {[%clk 0:02:01.1]}
19... Bd6 {[%clk 0:00:43.8]} 20. Rxf6 {[%clk 0:01:50.1]} 20... Bxe5 {[%clk
0:00:42]} 21. Bxe5 {[%clk 0:01:49.9]} 21... Qxe5 {[%clk 0:00:40.5]} 22. Qf3
{[%clk 0:01:34]} 22... g4 {[%clk 0:00:35.1]} 23. Qf4 {[%clk 0:01:25]} 23... Qxf4
{[%clk 0:00:34.5]} 24. R1xf4 {[%clk 0:01:25.9]} 24... Ke7 {[%clk 0:00:34]} 25.
Nf1 {[%clk 0:01:21.4]} 25... Rh8 {[%clk 0:00:31.1]} 26. Ng3 {[%clk 0:01:16.6]}
26... Rgh7 {[%clk 0:00:23.5]} 27. e4 {[%clk 0:01:10.6]} 27... dxe4 {[%clk
0:00:22.2]} 28. Nxe4 {[%clk 0:01:08.4]} 28... Bxe4 {[%clk 0:00:21]} 29. dxe4
{[%clk 0:01:08.5]} 29... Rxh2 {[%clk 0:00:20]} 30. Rxf7+ {[%clk 0:01:07.9]}
30... Kd6 {[%clk 0:00:19.8]} 31. Rxg4 {[%clk 0:01:06.8]} 31... Rh1+ {[%clk
0:00:18.4]} 32. Kf2 {[%clk 0:01:07.1]} 32... Rc1 {[%clk 0:00:17.5]} 33. Rg5
{[%clk 0:00:59.1]} 33... Rxc2+ {[%clk 0:00:17.1]} 34. Kg3 {[%clk 0:00:59.7]}
34... Rc3+ {[%clk 0:00:16.7]} 35. Rf3 {[%clk 0:00:59]} 35... Rxf3+ {[%clk
0:00:11]} 36. Kxf3 {[%clk 0:00:58.6]} 36... Rh1 {[%clk 0:00:10.2]} 37. Rg3
{[%clk 0:00:52.3]} 37... Rb1 {[%clk 0:00:08]} 38. Kf4 {[%clk 0:00:51.9]} 38...
c4 {[%clk 0:00:07.6]} 39. bxc4 {[%clk 0:00:50.5]} 39... b3 {[%clk 0:00:07.2]}
40. Rc3 {[%clk 0:00:40.9]} 40... Rf1+ {[%clk 0:00:05.6]} 41. Kg5 {[%clk
0:00:40]} 41... b2 {[%clk 0:00:06.2]} 0-1

[Event "*** Titled Tuesday Blitz"]
[Site "Chess.com"]
[Date "2020.04.14"]
[Round "8"]
[White "DaggiGretarsson"]
[Black "Gerasimenyuk_Miha"]
[Result "1-0"]
[WhiteElo "2640"]
[BlackElo "2490"]
[TimeControl "180+1"]
[EndTime "11:29:44 PDT"]
[Termination "DaggiGretarsson won by checkmate"]

1. e4 {[%clk 0:02:59.1]} 1... c6 {[%clk 0:02:59.9]} 2. Nf3 {[%clk 0:02:58.2]}
2... d5 {[%clk 0:03:00.8]} 3. Nc3 {[%clk 0:02:57.6]} 3... dxe4 {[%clk
0:03:01.7]} 4. Nxe4 {[%clk 0:02:57.4]} 4... Nf6 {[%clk 0:03:02.6]} 5. Nxf6+
{[%clk 0:02:57.3]} 5... gxf6 {[%clk 0:03:03.5]} 6. d4 {[%clk 0:02:52.4]} 6...
Nd7 {[%clk 0:03:02.2]} 7. Bd3 {[%clk 0:02:44.6]} 7... Nb6 {[%clk 0:03:00.7]} 8.
O-O {[%clk 0:02:43.7]} 8... h5 {[%clk 0:02:59.7]} 9. Re1 {[%clk 0:02:42.7]} 9...
h4 {[%clk 0:02:56.2]} 10. h3 {[%clk 0:02:29.5]} 10... Be6 {[%clk 0:02:52.9]} 11.
Rxe6 {[%clk 0:02:09.9]} 11... fxe6 {[%clk 0:02:51]} 12. Bg6+ {[%clk 0:02:09.1]}
12... Kd7 {[%clk 0:02:51]} 13. Qe2 {[%clk 0:02:06.7]} 13... Qc7 {[%clk
0:02:34.9]} 14. Bf7 {[%clk 0:02:03]} 14... Nd5 {[%clk 0:02:04.8]} 15. Bxe6+
{[%clk 0:01:57.7]} 15... Kd8 {[%clk 0:02:03.4]} 16. Qe4 {[%clk 0:01:53.1]} 16...
Qd6 {[%clk 0:01:56.2]} 17. c4 {[%clk 0:01:49.5]} 17... Nc7 {[%clk 0:01:55.7]}
18. Bf4 {[%clk 0:01:45.6]} 18... Qb4 {[%clk 0:01:46.6]} 19. Bf7 {[%clk
0:01:26.6]} 19... Bh6 {[%clk 0:01:41.6]} 20. a3 {[%clk 0:01:16.1]} 20... Qxb2
{[%clk 0:01:33.7]} 21. Bxc7+ {[%clk 0:01:11.1]} 21... Kxc7 {[%clk 0:01:34.6]}
22. Qxe7+ {[%clk 0:01:10.6]} 22... Kb6 {[%clk 0:01:32.5]} 23. c5+ {[%clk
0:01:00]} 23... Ka5 {[%clk 0:01:18]} 24. Qe1+ {[%clk 0:00:57.1]} 24... Ka6
{[%clk 0:01:16]} 25. Rb1 {[%clk 0:00:48.2]} 25... Qc2 {[%clk 0:00:57]} 26. Qb4
{[%clk 0:00:41.3]} 26... b5 {[%clk 0:00:45.3]} 27. cxb6 {[%clk 0:00:39.7]} 27...
Qxb1+ {[%clk 0:00:44.7]} 28. Qxb1 {[%clk 0:00:39]} 28... axb6 {[%clk 0:00:45.6]}
29. d5 {[%clk 0:00:34.7]} 29... Rhf8 {[%clk 0:00:35.2]} 30. Be6 {[%clk
0:00:31.4]} 30... c5 {[%clk 0:00:29.8]} 31. Qd3+ {[%clk 0:00:29.2]} 31... Ka7
{[%clk 0:00:24.9]} 32. Qh7+ {[%clk 0:00:28.4]} 32... Ka6 {[%clk 0:00:23.8]} 33.
Qxh6 {[%clk 0:00:27.9]} 33... Rab8 {[%clk 0:00:22.4]} 34. Nxh4 {[%clk
0:00:25.7]} 34... b5 {[%clk 0:00:20.6]} 35. Nf3 {[%clk 0:00:19.7]} 35... b4
{[%clk 0:00:20.4]} 36. axb4 {[%clk 0:00:19.6]} 36... cxb4 {[%clk 0:00:20.2]} 37.
d6 {[%clk 0:00:18.6]} 37... b3 {[%clk 0:00:20.1]} 38. Bc4+ {[%clk 0:00:18.3]}
38... Ka5 {[%clk 0:00:19.8]} 39. Qd2+ {[%clk 0:00:17.5]} 39... Ka4 {[%clk
0:00:18.1]} 40. Qb2 {[%clk 0:00:15.4]} 40... Rb4 {[%clk 0:00:16.7]} 41. Qa1#
{[%clk 0:00:14.3]} 1-0

[Event "*** Titled Tuesday Blitz"]
[Site "Chess.com"]
[Date "2020.04.14"]
[Round "8"]
[White "AndrewMaco"]
[Black "stoleriu"]
[Result "1/2-1/2"]
[WhiteElo "2608"]
[BlackElo "2480"]
[TimeControl "180+1"]
[EndTime "11:29:44 PDT"]
[Termination "Game drawn by agreement"]

1. e4 {[%clk 0:03:00.9]} 1... e6 {[%clk 0:02:59.9]} 2. d4 {[%clk 0:03:00.6]}
2... d5 {[%clk 0:03:00.8]} 3. Nc3 {[%clk 0:02:56.7]} 3... Bb4 {[%clk 0:03:00]}
4. e5 {[%clk 0:02:56.7]} 4... c5 {[%clk 0:02:59.9]} 5. a3 {[%clk 0:02:57.3]}
5... Ba5 {[%clk 0:03:00.2]} 6. b4 {[%clk 0:02:51.7]} 6... cxd4 {[%clk
0:02:59.3]} 7. bxa5 {[%clk 0:02:48.4]} 7... dxc3 {[%clk 0:02:57.5]} 8. Qg4
{[%clk 0:02:48.6]} 8... Kf8 {[%clk 0:02:49.7]} 9. Nf3 {[%clk 0:02:21.1]} 9...
Ne7 {[%clk 0:02:47.9]} 10. Bd3 {[%clk 0:02:19.5]} 10... Nbc6 {[%clk 0:02:47.4]}
11. a6 {[%clk 0:02:15.7]} 11... bxa6 {[%clk 0:02:28.5]} 12. h4 {[%clk
0:02:15.3]} 12... h5 {[%clk 0:02:27.3]} 13. Qg3 {[%clk 0:02:11.6]} 13... Rb8
{[%clk 0:02:26.3]} 14. O-O {[%clk 0:02:08.9]} 14... Nf5 {[%clk 0:02:17]} 15.
Bxf5 {[%clk 0:01:50.6]} 15... exf5 {[%clk 0:02:17.9]} 16. Bg5 {[%clk 0:01:47.1]}
16... Qc7 {[%clk 0:02:15.3]} 17. Rab1 {[%clk 0:01:30.8]} 17... Be6 {[%clk
0:02:12.9]} 18. Qf4 {[%clk 0:01:27.5]} 18... Ke8 {[%clk 0:01:56.6]} 19. Qa4
{[%clk 0:01:20.4]} 19... Kd7 {[%clk 0:01:55.1]} 20. Qxa6 {[%clk 0:01:15]} 20...
Rxb1 {[%clk 0:01:45.3]} 21. Rxb1 {[%clk 0:01:15.9]} 21... Rb8 {[%clk 0:01:45.4]}
22. Rd1 {[%clk 0:01:13.3]} 22... Qa5 {[%clk 0:01:40.8]} 23. Qd3 {[%clk
0:01:11.8]} 23... Qxa3 {[%clk 0:01:33.1]} 24. Bc1 {[%clk 0:01:01.6]} 24... Qb4
{[%clk 0:01:21.7]} 25. Be3 {[%clk 0:00:59.5]} 25... a5 {[%clk 0:01:15]} 26. Bd4
{[%clk 0:00:59.7]} 26... a4 {[%clk 0:01:11.4]} 27. Bxc3 {[%clk 0:00:57.5]} 27...
Qe4 {[%clk 0:01:00.2]} 28. Qa6 {[%clk 0:00:51.9]} 28... Qxc2 {[%clk 0:00:59.6]}
29. Rd3 {[%clk 0:00:38.1]} 29... Qb1+ {[%clk 0:00:59.2]} 30. Kh2 {[%clk
0:00:37.5]} 30... Qb5 {[%clk 0:00:59.6]} 31. Qxb5 {[%clk 0:00:34.5]} 31... Rxb5
{[%clk 0:01:00.5]} 32. Nd4 {[%clk 0:00:32.6]} 32... Nxd4 {[%clk 0:00:38.4]} 33.
Bxd4 {[%clk 0:00:33.5]} 33... Rb3 {[%clk 0:00:34.8]} 34. Rxb3 {[%clk 0:00:32.4]}
34... axb3 {[%clk 0:00:35.7]} 35. Kg3 {[%clk 0:00:29.3]} 35... Kc6 {[%clk
0:00:33.9]} 36. Kf4 {[%clk 0:00:29.3]} 36... Kb5 {[%clk 0:00:33.1]} 37. Ke3
{[%clk 0:00:29.7]} 37... Kc4 {[%clk 0:00:29.4]} 38. g3 {[%clk 0:00:22]} 38... g6
{[%clk 0:00:28.4]} 39. f4 {[%clk 0:00:21.4]} 39... Bd7 {[%clk 0:00:22.7]} 40.
Bb2 {[%clk 0:00:21.5]} 40... Bc6 {[%clk 0:00:21.3]} 41. Bd4 {[%clk 0:00:21.5]}
41... Kb4 {[%clk 0:00:20.5]} 42. Bb2 {[%clk 0:00:21.3]} 42... Kc4 {[%clk
0:00:19.4]} 43. Ba1 {[%clk 0:00:20.3]} 1/2-1/2

[Event "*** Titled Tuesday Blitz"]
[Site "Chess.com"]
[Date "2020.04.14"]
[Round "8"]
[White "fugadelafuga"]
[Black "SaguriGuerra"]
[Result "0-1"]
[WhiteElo "2381"]
[BlackElo "2524"]
[TimeControl "180+1"]
[EndTime "11:29:44 PDT"]
[Termination "SaguriGuerra won on time"]

1. e4 {[%clk 0:02:51.9]} 1... e6 {[%clk 0:02:59.1]} 2. d4 {[%clk 0:02:51.5]}
2... d5 {[%clk 0:02:58.7]} 3. Nd2 {[%clk 0:02:51.9]} 3... Be7 {[%clk 0:02:57.9]}
4. Ngf3 {[%clk 0:02:47.7]} 4... Nf6 {[%clk 0:02:57.9]} 5. e5 {[%clk 0:02:47.1]}
5... Nfd7 {[%clk 0:02:57.9]} 6. Bd3 {[%clk 0:02:46.6]} 6... c5 {[%clk 0:02:57]}
7. c3 {[%clk 0:02:47.1]} 7... Nc6 {[%clk 0:02:54.4]} 8. O-O {[%clk 0:02:44.7]}
8... g5 {[%clk 0:02:54.2]} 9. dxc5 {[%clk 0:02:18.5]} 9... Ndxe5 {[%clk
0:02:48.2]} 10. Nxe5 {[%clk 0:02:14.7]} 10... Nxe5 {[%clk 0:02:47.3]} 11. Nb3
{[%clk 0:02:14]} 11... Nxd3 {[%clk 0:02:42.4]} 12. Qxd3 {[%clk 0:02:14.9]} 12...
f6 {[%clk 0:02:43]} 13. c4 {[%clk 0:02:11.1]} 13... a5 {[%clk 0:02:36.8]} 14. a4
{[%clk 0:01:59.9]} 14... d4 {[%clk 0:02:36.3]} 15. Nxd4 {[%clk 0:01:50.1]} 15...
Bxc5 {[%clk 0:02:33.9]} 16. Rd1 {[%clk 0:01:48.8]} 16... O-O {[%clk 0:02:23.1]}
17. Be3 {[%clk 0:01:40.6]} 17... Qe7 {[%clk 0:01:37.6]} 18. Nb5 {[%clk
0:01:14.8]} 18... Ra6 {[%clk 0:01:29.6]} 19. Qe4 {[%clk 0:01:01.4]} 19... Rc6
{[%clk 0:01:16]} 20. b3 {[%clk 0:00:56.1]} 20... Kg7 {[%clk 0:00:59.5]} 21. Rd3
{[%clk 0:00:43.8]} 21... e5 {[%clk 0:00:54]} 22. g4 {[%clk 0:00:33.1]} 22...
Bxe3 {[%clk 0:00:51.2]} 23. Rxe3 {[%clk 0:00:31.2]} 23... Rd8 {[%clk 0:00:49.3]}
24. h3 {[%clk 0:00:27.3]} 24... Be6 {[%clk 0:00:49.1]} 25. Ree1 {[%clk
0:00:25.2]} 25... Qb4 {[%clk 0:00:46.5]} 26. Qe3 {[%clk 0:00:20.4]} 26... Qd2
{[%clk 0:00:35.4]} 27. Rad1 {[%clk 0:00:17.9]} 27... Qxe3 {[%clk 0:00:34.9]} 28.
fxe3 {[%clk 0:00:18.8]} 28... Rcc8 {[%clk 0:00:24.3]} 29. Nd6 {[%clk 0:00:17.6]}
29... Rb8 {[%clk 0:00:24.6]} 30. Kf2 {[%clk 0:00:16.5]} 30... Kf8 {[%clk
0:00:24.2]} 31. e4 {[%clk 0:00:16.1]} 31... Ke7 {[%clk 0:00:23.7]} 32. Nb5
{[%clk 0:00:16]} 32... Rh8 {[%clk 0:00:20.3]} 33. Rd6 {[%clk 0:00:14.2]} 33...
h5 {[%clk 0:00:20.5]} 34. Red1 {[%clk 0:00:12.5]} 34... hxg4 {[%clk 0:00:20.7]}
35. hxg4 {[%clk 0:00:13.4]} 35... Bxg4 {[%clk 0:00:20.8]} 36. Kg3 {[%clk
0:00:12.2]} 36... Be6 {[%clk 0:00:20.4]} 37. Nc3 {[%clk 0:00:11.6]} 37... Rh3+
{[%clk 0:00:20.4]} 38. Kf2 {[%clk 0:00:10.1]} 38... Rbh8 {[%clk 0:00:21]} 0-1

[Event "*** Titled Tuesday Blitz"]
[Site "Chess.com"]
[Date "2020.04.14"]
[Round "8"]
[White "Hangar-18"]
[Black "MartinMatthiesen"]
[Result "0-1"]
[WhiteElo "2232"]
[BlackElo "2426"]
[TimeControl "180+1"]
[EndTime "11:29:44 PDT"]
[Termination "MartinMatthiesen won by checkmate"]

1. c4 {[%clk 0:02:59.9]} 1... e5 {[%clk 0:02:59]} 2. g3 {[%clk 0:02:59.6]} 2...
Nc6 {[%clk 0:02:56.4]} 3. Bg2 {[%clk 0:02:59.6]} 3... f5 {[%clk 0:02:55.2]} 4.
Nc3 {[%clk 0:02:59.4]} 4... Bb4 {[%clk 0:02:49.7]} 5. Nd5 {[%clk 0:02:56.1]}
5... Bc5 {[%clk 0:02:49.5]} 6. d3 {[%clk 0:02:56.3]} 6... Nge7 {[%clk
0:02:45.6]} 7. e3 {[%clk 0:02:52.9]} 7... O-O {[%clk 0:02:41.9]} 8. Ne2 {[%clk
0:02:51.9]} 8... Nxd5 {[%clk 0:02:41.4]} 9. cxd5 {[%clk 0:02:48.2]} 9... Ne7
{[%clk 0:02:39.7]} 10. d4 {[%clk 0:02:45.5]} 10... Bb4+ {[%clk 0:02:39.4]} 11.
Bd2 {[%clk 0:02:43.7]} 11... Bxd2+ {[%clk 0:02:37.7]} 12. Qxd2 {[%clk
0:02:44.6]} 12... e4 {[%clk 0:02:37.9]} 13. Nc3 {[%clk 0:02:43.8]} 13... d6
{[%clk 0:02:34.7]} 14. f3 {[%clk 0:02:36]} 14... exf3 {[%clk 0:02:31.3]} 15.
Bxf3 {[%clk 0:02:36.9]} 15... Bd7 {[%clk 0:02:27]} 16. O-O {[%clk 0:02:32.2]}
16... Kh8 {[%clk 0:02:26.1]} 17. b4 {[%clk 0:02:16.2]} 17... Ng8 {[%clk
0:02:24.7]} 18. e4 {[%clk 0:01:32.4]} 18... fxe4 {[%clk 0:02:21.5]} 19. Nxe4
{[%clk 0:01:33.3]} 19... h6 {[%clk 0:01:33.4]} 20. Rac1 {[%clk 0:01:30.5]} 20...
Nf6 {[%clk 0:01:30.7]} 21. Nxf6 {[%clk 0:01:00.8]} 21... Rxf6 {[%clk 0:01:29.8]}
22. Rf2 {[%clk 0:01:01.4]} 22... Bh3 {[%clk 0:01:16.1]} 23. Qc3 {[%clk
0:00:15.7]} 23... Qd7 {[%clk 0:00:49]} 24. Bg2 {[%clk 0:00:02.9]} 24... Rxf2
{[%clk 0:00:38]} 25. Kxf2 {[%clk 0:00:03.8]} 25... Rf8+ {[%clk 0:00:32.8]} 26.
Kg1 {[%clk 0:00:04.1]} 26... Bxg2 {[%clk 0:00:29.1]} 27. Kxg2 {[%clk 0:00:05]}
27... Qf5 {[%clk 0:00:28.7]} 28. Qxc7 {[%clk 0:00:03.8]} 28... Qxd5+ {[%clk
0:00:28.2]} 29. Kh3 {[%clk 0:00:03.4]} 29... Rf2 {[%clk 0:00:20.9]} 30. Qc8+
{[%clk 0:00:02.8]} 30... Kh7 {[%clk 0:00:21]} 31. Rc7 {[%clk 0:00:01.8]} 31...
Qh5# {[%clk 0:00:19.9]} 0-1

[Event "*** Titled Tuesday Blitz"]
[Site "Chess.com"]
[Date "2020.04.14"]
[Round "8"]
[White "Jagerrmeisterr"]
[Black "GelmanAlexander"]
[Result "1-0"]
[WhiteElo "2696"]
[BlackElo "2469"]
[TimeControl "180+1"]
[EndTime "11:29:46 PDT"]
[Termination "Jagerrmeisterr won on time"]

1. e4 {[%clk 0:03:00.9]} 1... c5 {[%clk 0:02:59.4]} 2. Nc3 {[%clk 0:03:01.2]}
2... e6 {[%clk 0:02:59.6]} 3. g3 {[%clk 0:03:01.8]} 3... Nc6 {[%clk 0:02:59.5]}
4. Bg2 {[%clk 0:03:02.3]} 4... Nf6 {[%clk 0:03:00.1]} 5. Nge2 {[%clk 0:03:02]}
5... Be7 {[%clk 0:03:00.3]} 6. O-O {[%clk 0:03:01.7]} 6... d6 {[%clk 0:02:59.7]}
7. h3 {[%clk 0:02:58]} 7... O-O {[%clk 0:02:59.2]} 8. d3 {[%clk 0:02:58.4]} 8...
Rb8 {[%clk 0:02:56.7]} 9. f4 {[%clk 0:02:58.5]} 9... Bd7 {[%clk 0:02:55.5]} 10.
a4 {[%clk 0:02:55.4]} 10... a6 {[%clk 0:02:55.2]} 11. g4 {[%clk 0:02:54.5]}
11... h6 {[%clk 0:02:55.3]} 12. Be3 {[%clk 0:02:51.8]} 12... b5 {[%clk
0:02:55.2]} 13. Ng3 {[%clk 0:02:51.1]} 13... b4 {[%clk 0:02:54.8]} 14. Nce2
{[%clk 0:02:51.1]} 14... Nh7 {[%clk 0:02:50.3]} 15. d4 {[%clk 0:02:40.3]} 15...
cxd4 {[%clk 0:02:38.9]} 16. Nxd4 {[%clk 0:02:40.3]} 16... Qc7 {[%clk 0:02:29.9]}
17. Qe2 {[%clk 0:02:15.7]} 17... Nxd4 {[%clk 0:02:18.4]} 18. Bxd4 {[%clk
0:02:15.9]} 18... a5 {[%clk 0:02:02.5]} 19. g5 {[%clk 0:01:59.2]} 19... hxg5
{[%clk 0:01:56.2]} 20. f5 {[%clk 0:01:59.4]} 20... Bf6 {[%clk 0:01:47.6]} 21.
Bxf6 {[%clk 0:01:44.8]} 21... Nxf6 {[%clk 0:01:46.3]} 22. Qd2 {[%clk 0:01:44.5]}
22... g4 {[%clk 0:01:18.1]} 23. hxg4 {[%clk 0:01:33.4]} 23... Nxg4 {[%clk
0:01:11.3]} 24. Qg5 {[%clk 0:01:13.7]} 24... Qc5+ {[%clk 0:01:06.7]} 25. Kh1
{[%clk 0:01:11.4]} 25... Nf6 {[%clk 0:00:53.7]} 26. Bf3 {[%clk 0:00:53.5]} 26...
exf5 {[%clk 0:00:50.9]} 27. Rg1 {[%clk 0:00:48.5]} 27... Nh7 {[%clk 0:00:20.3]}
28. Qh4 {[%clk 0:00:48.5]} 28... fxe4 {[%clk 0:00:18.6]} 29. Bxe4 {[%clk
0:00:48.8]} 29... f5 {[%clk 0:00:17.9]} 30. Nh5 {[%clk 0:00:45]} 30... Rf7
{[%clk 0:00:16]} 31. Raf1 {[%clk 0:00:35.9]} 31... Bc6 {[%clk 0:00:16.3]} 32.
Bxc6 {[%clk 0:00:33.6]} 32... Qxc6+ {[%clk 0:00:17.2]} 33. Rg2 {[%clk
0:00:34.3]} 33... Re8 {[%clk 0:00:16.3]} 34. Rg1 {[%clk 0:00:34.5]} 34... Ree7
{[%clk 0:00:16.8]} 35. Kh2 {[%clk 0:00:34.3]} 35... Qf3 {[%clk 0:00:16.7]} 36.
Rg3 {[%clk 0:00:32.1]} 36... Re2+ {[%clk 0:00:16.5]} 37. Kh3 {[%clk 0:00:28.4]}
37... Qf2 {[%clk 0:00:11.4]} 38. Rxg7+ {[%clk 0:00:25]} 38... Rxg7 {[%clk
0:00:10.8]} 39. Rxg7+ {[%clk 0:00:24.9]} 39... Kh8 {[%clk 0:00:11.1]} 40. Qd8+
{[%clk 0:00:24.8]} 1-0

[Event "*** Titled Tuesday Blitz"]
[Site "Chess.com"]
[Date "2020.04.14"]
[Round "8"]
[White "konradrutkowski"]
[Black "grandcoach"]
[Result "0-1"]
[WhiteElo "2152"]
[BlackElo "1882"]
[TimeControl "180+1"]
[EndTime "11:29:46 PDT"]
[Termination "grandcoach won by resignation"]

1. e4 {[%clk 0:03:00.9]} 1... c5 {[%clk 0:02:59.2]} 2. Nf3 {[%clk 0:02:58.4]}
2... e6 {[%clk 0:02:59.2]} 3. d3 {[%clk 0:02:57.7]} 3... Nc6 {[%clk 0:02:57.6]}
4. g3 {[%clk 0:02:57.6]} 4... g6 {[%clk 0:02:55.6]} 5. Bg2 {[%clk 0:02:57.6]}
5... Bg7 {[%clk 0:02:56.1]} 6. O-O {[%clk 0:02:57.8]} 6... Nge7 {[%clk
0:02:56.7]} 7. c3 {[%clk 0:02:57.3]} 7... d5 {[%clk 0:02:53.2]} 8. Qe2 {[%clk
0:02:50.1]} 8... O-O {[%clk 0:02:51.9]} 9. e5 {[%clk 0:02:46]} 9... h6 {[%clk
0:02:46.1]} 10. h4 {[%clk 0:02:45.2]} 10... Qc7 {[%clk 0:02:21.9]} 11. Re1
{[%clk 0:02:37]} 11... f6 {[%clk 0:02:14.4]} 12. exf6 {[%clk 0:02:18.7]} 12...
Rxf6 {[%clk 0:02:14.2]} 13. Nbd2 {[%clk 0:01:54.5]} 13... Bd7 {[%clk 0:02:14.1]}
14. Nf1 {[%clk 0:01:48]} 14... Raf8 {[%clk 0:02:14.5]} 15. N1h2 {[%clk
0:01:47.9]} 15... e5 {[%clk 0:01:51.4]} 16. Be3 {[%clk 0:01:28.6]} 16... d4
{[%clk 0:01:42.8]} 17. Bd2 {[%clk 0:01:23.5]} 17... Nd5 {[%clk 0:01:25.7]} 18.
Nxe5 {[%clk 0:01:08.5]} 18... Rxf2 {[%clk 0:01:08.5]} 19. Bxd5+ {[%clk
0:01:07.9]} 19... Kh7 {[%clk 0:01:08.5]} 20. Qxf2 {[%clk 0:01:03.3]} 20... Rxf2
{[%clk 0:01:07.6]} 21. Kxf2 {[%clk 0:01:03]} 21... Bxe5 {[%clk 0:01:01.1]} 22.
Kg2 {[%clk 0:00:52.3]} 22... Bxg3 {[%clk 0:00:57.7]} 23. Rf1 {[%clk 0:00:40]}
23... Bxh2 {[%clk 0:00:43.9]} 24. Rf7+ {[%clk 0:00:39.3]} 24... Kh8 {[%clk
0:00:43.7]} 25. Rf8+ {[%clk 0:00:34.6]} 25... Kg7 {[%clk 0:00:31.6]} 26. Rf7+
{[%clk 0:00:30.1]} 26... Kh8 {[%clk 0:00:30.9]} 27. Raf1 {[%clk 0:00:16.2]}
27... Nd8 {[%clk 0:00:15.1]} 28. Rf8+ {[%clk 0:00:10.6]} 28... Kg7 {[%clk
0:00:15.3]} 29. Bf4 {[%clk 0:00:05.1]} 29... Bxf4 {[%clk 0:00:12.6]} 30. R1xf4
{[%clk 0:00:06]} 30... Qd6 {[%clk 0:00:11.2]} 31. Rg8+ {[%clk 0:00:04.7]} 31...
Kh7 {[%clk 0:00:11]} 32. Rff8 {[%clk 0:00:04]} 32... Qxd5+ {[%clk 0:00:10.6]}
33. Kf2 {[%clk 0:00:03.4]} 33... Qxg8 {[%clk 0:00:11.5]} 0-1